bitfinex/quotes_ETHUSD_20220226
["timestamp","ask_amount","ask_price","bid_price","bid_amount"]
[1645899000007,1.26287105,2784.7,2784.1,0.00357122]
[1645899000210,1.26287105,2784.7,2784.2,0.00357122]
[1645899000447,3.6436,2784.9,2784.0,2.3224312]
[1645899000647,5.4156,2784.9,2784.1,0.00357122]
[1645899001448,6.4156,2784.9,2784.1,0.00357122]
[1645899002049,6.4156,2784.9,2784.4,0.00498813]
[1645899002250,7.67933287,2784.9,2784.4,0.00498813]
[1645899002449,5.272,2784.9,2784.4,0.00498813]
[1645899002653,5.272,2784.9,2784.4,0.90322573]
[1645899002654,1.772,2784.9,2784.4,0.90322573]
[1645899002851,1.772,2784.9,2784.4,0.8982376]
[1645899003249,1.772,2784.9,2784.5,0.00498798]
[1645899004054,1.772,2784.9,2784.4,0.8982376]
[1645899004301,1.772,2784.9,2784.6,0.00498793]
[1645899005301,1.772,2784.9,2784.4,0.90180882]
[1645899005503,0.67615648,2785.3,2784.4,0.8982376]
[1645899005703,1.772,2785.2,2784.5,0.00357122]
[1645899006601,1.772,2785.2,2784.7,0.00480681]
[1645899007707,1.772,2785.2,2784.5,0.00357122]
[1645899007955,1.772,2785.2,2784.7,0.00480688]
[1645899008153,2.80033569,2785.2,2784.7,0.00480688]
[1645899008453,0.00278299,2784.6,2784.5,0.00357122]
[1645899008654,0.00278299,2784.6,2784.4,0.9174673]
[1645899008852,0.00278299,2784.6,2784.4,0.8982376]
[1645899010065,0.00278299,2784.6,2784.2,1.1593]
[1645899011161,0.00278299,2784.6,2784.2,2.955908]
[1645899011567,0.00278299,2784.6,2784.3,0.00274975]
[1645899012002,0.00278299,2784.6,2784.3,0.32034302]
[1645899012401,0.00278299,2784.6,2784.3,0.31759327]
[1645899012702,0.00278299,2784.6,2784.3,0.32271687]
[1645899012903,0.00278299,2784.6,2784.4,0.31759327]
[1645899013903,0.00278299,2784.6,2784.4,0.322391]
[1645899014107,0.00278299,2784.6,2784.5,0.31759327]
[1645899015203,0.00278299,2784.6,2784.4,0.32239095]
[1645899015448,0.00278299,2784.6,2784.5,0.31759327]
[1645899016449,0.00278299,2784.6,2784.4,0.32239095]
[1645899016657,0.00278299,2784.6,2784.5,0.31759327]
[1645899017656,0.00278299,2784.6,2784.4,1.22056475]
[1645899017955,0.00278299,2784.6,2784.5,0.31759327]
[1645899020396,0.00278299,2784.6,2784.4,0.90299327]
[1645899020593,0.00278299,2784.6,2784.5,0.31699528]
[1645899025658,0.67615648,2785.6,2784.5,0.31699528]
[1645899025659,0.81975648,2785.9,2784.6,12.0]
[1645899025860,1.18317944,2785.8,2784.7,2.88030278]
[1645899026058,0.00481673,2785.2,2784.8,0.31699528]
[1645899026256,0.00481673,2785.2,2784.9,0.516]
[1645899026456,0.00481673,2785.2,2785.1,1.40652325]
[1645899026718,0.00481673,2785.2,2785.1,2.23951853]
[1645899026913,14.35982,2786.1,2785.1,2.53951853]
[1645899027218,14.35982,2786.1,2785.4,0.8977956]
[1645899027219,1.21315739,2786.0,2785.4,0.8977956]
[1645899028016,1.21315739,2786.0,2785.4,4.3977956]
[1645899028214,1.21315739,2786.0,2785.4,4.36927933]
[1645899028515,0.00481649,2785.8,2785.5,0.8978]
[1645899028714,1.21315739,2785.7,2785.4,2.10795535]
[1645899028915,1.21315739,2785.7,2785.4,5.60795535]
[1645899029120,1.21315739,2785.7,2785.5,0.3131417]
[1645899029517,0.00482022,2785.7,2785.5,0.3131417]
[1645899029721,0.00482022,2785.7,2785.5,1.2108317]
[1645899029916,0.00482022,2785.7,2785.6,3.5]
[1645899030117,1.19099483,2785.7,2785.6,3.5]
[1645899030548,1.18617461,2785.7,2785.6,3.5]
[1645899030753,0.00482013,2785.8,2785.6,3.5]
[1645899030956,1.18617461,2785.7,2785.5,2.69321]
[1645899031957,0.00482017,2785.7,2785.5,2.69321]
[1645899032956,14.35982,2786.1,2785.6,0.8977708]
[1645899033158,0.00481631,2785.7,2785.6,0.8977708]
[1645899033359,1.19096214,2785.7,2785.6,0.8977708]
[1645899034203,1.18614583,2785.7,2785.6,0.8977708]
[1645899035600,0.00481626,2785.8,2785.6,0.8977708]
[1645899036000,1.18614583,2785.7,2785.6,0.8977708]
[1645899037104,1.18614583,2785.7,2785.6,1.1977708]
[1645899037955,0.00481652,2785.8,2785.6,1.1977708]
[1645899038156,1.18614583,2785.7,2785.6,1.1977708]
[1645899039258,0.00481652,2785.8,2785.6,1.1977708]
[1645899039556,1.18614583,2785.7,2785.6,1.1977708]
[1645899040362,0.0048165,2785.8,2785.6,1.1977708]
[1645899041162,0.0048165,2785.8,2785.6,0.8977708]
[1645899041363,14.35982,2786.1,2785.6,0.8977708]
[1645899041562,0.00481646,2785.8,2785.6,0.8977708]
[1645899042199,0.00481646,2785.8,2785.6,1.1977708]
[1645899042400,0.00481646,2785.8,2785.7,0.31200198]
[1645899042599,14.35982,2786.1,2785.8,1.7954]
[1645899042806,1.18763062,2786.0,2785.8,1.7954]
[1645899043902,1.19244688,2786.0,2785.8,2.69304]
[1645899044100,1.18763062,2785.9,2785.8,2.69304]
[1645899045103,1.19244693,2786.0,2785.8,2.69304]
[1645899045299,1.18763062,2785.9,2785.8,2.69304]
[1645899045742,1.18763062,2785.9,2785.8,2.99304]
[1645899046344,0.00481631,2786.0,2785.8,2.99304]
[1645899046546,0.00481631,2786.0,2785.8,2.0954]
[1645899047349,15.60878103,2786.1,2785.8,2.0954]
[1645899047550,1.19256164,2786.0,2785.8,2.0954]
[1645899047748,0.00481625,2786.0,2785.8,2.0954]
[1645899047950,1.18766027,2785.9,2785.8,2.0954]
[1645899048349,1.18766027,2785.9,2785.7,0.3]
[1645899048752,0.06279342,2785.9,2785.7,0.29752501]
[1645899049206,1.18776061,2785.8,2785.6,0.8977708]
[1645899049399,1.18776061,2785.8,2785.6,0.42588736]
[1645899050002,1.19257706,2785.8,2785.6,0.42588736]
[1645899050202,0.00481645,2785.8,2785.6,0.42588736]
[1645899050405,0.00481645,2785.8,2785.3,1.7957915]
[1645899050608,1.18733188,2785.7,2785.4,0.8979508]
[1645899051103,1.18733188,2785.8,2785.4,0.8979508]
[1645899051304,1.19214848,2785.7,2785.4,0.8979508]
[1645899051506,1.18733188,2785.6,2785.4,0.8979508]
[1645899051905,2.51727013,2785.6,2785.4,0.8979508]
[1645899052109,1.18733188,2785.5,2784.8,3.02312122]
[1645899052408,1.18733188,2785.5,2784.9,0.30928369]
[1645899052608,4.68733188,2785.5,2784.9,0.30928369]
[1645899052809,1.18733188,2785.4,2784.9,0.30928369]
[1645899053048,1.18733188,2785.4,2784.9,2.10530719]
[1645899053253,1.18733188,2785.4,2785.0,0.89796]
[1645899053554,1.19214887,2785.3,2785.0,0.89796]
[1645899053852,1.18733188,2785.2,2785.0,0.89796]
[1645899054050,0.00481699,2785.3,2785.0,0.89796]
[1645899054252,1.1907712,2785.2,2785.0,0.89796]
[1645899054858,1.1907712,2785.1,2785.0,0.89796]
[1645899055057,1.1907712,2785.1,2785.0,1.20739258]
[1645899055254,0.004817,2785.3,2785.0,1.20739258]
[1645899055456,0.004817,2785.3,2785.1,0.30943258]
[1645899055855,4.31975648,2785.9,2785.1,0.30943258]
[1645899056063,0.004817,2785.3,2785.1,0.30943258]
[1645899056256,0.004817,2785.3,2785.1,1.20737488]
[1645899056459,1.1911552,2785.2,2785.1,0.8979423]
[1645899056715,1.1911552,2785.2,2785.1,1.20744895]
[1645899057003,3.5,2785.7,2785.1,1.20744895]
[1645899057203,0.004817,2785.3,2785.2,0.30950665]
[1645899057405,1.19632694,2785.3,2785.2,0.30950665]
[1645899058103,1.19150994,2785.3,2785.2,0.25950665]
[1645899058303,4.31975648,2785.9,2785.2,0.25950665]
[1645899058506,1.39508795,2786.0,2785.3,1.7957669]
[1645899058507,0.00497931,2785.4,2785.3,1.7957669]
[1645899059405,3.5,2786.0,2785.3,1.7957669]
[1645899059604,15.03597648,2786.1,2785.4,0.89784]
[1645899059605,0.00497921,2785.5,2785.4,0.89784]
[1645899060648,15.03597648,2786.1,2785.4,0.89784]
[1645899060852,0.00497911,2785.6,2785.5,0.8978629]
[1645899061854,3.5,2785.8,2785.5,0.8978629]
[1645899062054,0.00480575,2785.7,2785.3,1.7957669]
[1645899062957,1.19311653,2785.6,2785.3,1.7957669]
[1645899063156,1.19792233,2785.6,2785.3,1.7957669]
[1645899063356,0.0048058,2785.6,2785.3,1.7957669]
[1645899064206,4.17615648,2786.0,2785.3,1.7957669]
[1645899064393,0.00480585,2785.6,2785.3,1.7957669]
[1645899064596,0.00480585,2785.6,2785.4,0.89792]
[1645899065299,3.5,2785.8,2785.4,0.89792]
[1645899065498,0.00481738,2785.6,2785.4,0.89792]
[1645899066603,0.67615648,2785.9,2785.4,0.89792]
[1645899066801,0.00481738,2785.6,2785.4,0.89792]
[1645899067801,0.67615648,2785.9,2785.4,0.89792]
[1645899068049,0.00481738,2785.6,2785.4,1.795802]
[1645899069057,4.17615648,2786.0,2785.3,1.7957669]
[1645899069260,0.00481661,2785.6,2785.3,1.7957669]
[1645899069453,0.00481661,2785.6,2785.1,1.93937]
[1645899070256,0.67615648,2785.8,2785.1,0.1436]
[1645899070457,0.00481675,2785.5,2785.1,0.1436]
[1645899071461,0.22844806,2785.0,2784.8,0.00357122]
[1645899071710,0.22844806,2785.0,2784.7,1.7961538]
[1645899072699,0.22844806,2785.0,2784.7,2.0961538]
[1645899075104,0.22844806,2785.0,2784.7,2.9941838]
[1645899075307,0.22844806,2785.0,2784.7,3.8921538]
[1645899078256,0.22844806,2785.0,2784.8,0.29793594]
[1645899078452,1.20562067,2784.9,2784.8,0.29793594]
[1645899078856,1.20562067,2784.9,2784.8,1.19601264]
[1645899079716,1.20081934,2784.9,2784.8,1.19601264]
[1645899080601,0.22844806,2785.0,2784.8,1.19601264]
[1645899080801,0.22844806,2785.0,2784.9,0.29793594]
[1645899081001,1.42938781,2785.0,2784.9,0.29793594]
[1645899081807,1.42938781,2785.0,2784.9,0.29643075]
[1645899087515,1.42938781,2785.0,2784.7,1.7961538]
[1645899087711,0.22844806,2785.0,2784.7,1.7961538]
[1645899097506,0.22844806,2785.0,2784.7,1.7271538]
[1645899099361,0.22844806,2785.0,2784.6,1.80093805]
[1645899099362,0.90460454,2785.0,2784.6,0.00481805]
[1645899099560,4.17615648,2784.9,2784.6,0.00481805]
[1645899099758,0.67615648,2784.9,2784.6,0.00481805]
[1645899100157,0.90460454,2785.0,2784.4,0.1436]
[1645899100362,1.20596429,2784.7,2784.4,0.1436]
[1645899100557,1.20596429,2784.7,2784.6,0.00481798]
[1645899101359,0.67615648,2784.8,2784.4,0.1436]
[1645899101829,0.67615648,2784.8,2784.5,0.00481799]
[1645899102228,1.17058619,2784.9,2784.5,0.00481799]
[1645899102229,1.84674267,2784.9,2784.5,0.00481799]
[1645899102431,1.17058619,2784.8,2784.5,0.00481799]
[1645899102631,1.40134785,2784.7,2784.4,0.1436]
[1645899102830,0.67615648,2784.9,2784.6,0.0048142]
[1645899103228,1.84679403,2784.9,2784.6,0.0048142]
[1645899103829,1.84679403,2784.9,2784.4,0.1436]
[1645899104031,1.17063755,2784.9,2784.6,0.00481423]
[1645899104231,1.17063755,2784.8,2784.6,0.00481423]
[1645899104432,1.17063755,2784.7,2784.6,0.00481423]
[1645899104831,1.17063755,2784.9,2784.6,0.00481423]
[1645899105032,1.12063755,2784.8,2784.7,0.33240358]
[1645899105236,0.22844806,2785.0,2784.5,0.00488932]
[1645899105856,0.90460454,2785.0,2784.5,0.00488932]
[1645899106056,0.22844806,2785.0,2784.5,0.00488932]
[1645899106257,0.22844806,2785.0,2784.4,0.1436]
[1645899106455,0.22844806,2785.0,2784.6,0.00488931]
[1645899107462,0.22844806,2785.0,2784.4,0.1436]
[1645899107661,0.22844806,2785.0,2784.6,0.00488935]
[1645899108664,0.22844806,2785.0,2784.4,0.1436]
[1645899108864,0.22844806,2785.0,2784.6,0.00480925]
[1645899109807,0.22844806,2785.0,2784.4,0.1436]
[1645899110010,0.22844806,2785.0,2784.6,0.00480925]
[1645899111009,0.22844806,2785.0,2784.4,0.1436]
[1645899111209,0.90460454,2785.0,2784.6,0.00480925]
[1645899112215,0.90460454,2785.0,2784.4,0.1436]
[1645899113257,3.18186183,2784.9,2784.4,0.1436]
[1645899113459,0.67615648,2784.8,2784.4,0.1436]
[1645899113658,0.67615648,2784.8,2784.6,0.00481078]
[1645899114458,0.67615648,2784.9,2784.6,0.00481078]
[1645899114656,0.90460454,2785.0,2784.2,0.90187232]
[1645899114855,0.90460454,2785.0,2784.6,0.00481078]
[1645899115859,0.90460454,2785.0,2784.3,0.00357122]
[1645899116257,0.90460454,2785.0,2784.6,0.0048105]
[1645899116906,0.90460454,2785.0,2784.3,0.00357122]
[1645899117105,4.40460454,2785.0,2784.3,0.00357122]
[1645899117307,4.40460454,2785.0,2784.6,0.0048105]
[1645899117709,0.90460454,2785.0,2784.6,0.0048105]
[1645899118109,0.22844806,2785.0,2784.3,0.00357122]
[1645899118309,0.90460454,2785.0,2784.3,0.00357122]
[1645899118512,0.67615648,2784.9,2784.6,0.0048105]
[1645899119412,0.67615648,2784.9,2784.2,0.89216556]
[1645899119611,0.67615648,2784.9,2784.6,0.0048105]
[1645899120647,0.67615648,2784.9,2784.2,0.89216556]
[1645899121048,0.90460454,2785.0,2784.2,0.89216556]
[1645899121449,0.67615648,2784.9,2784.2,0.89216556]
[1645899122153,0.67615648,2784.9,2784.4,0.00273851]
[1645899122556,0.22844806,2785.0,2784.4,0.00273851]
[1645899122557,0.90460454,2785.0,2784.4,0.00273851]
[1645899123056,0.90460454,2785.0,2784.2,0.89216556]
[1645899123255,0.90460454,2785.0,2784.5,0.00511605]
[1645899124209,0.90460454,2785.0,2784.3,4.39825]
[1645899124210,0.22844806,2785.0,2784.3,4.39825]
[1645899124411,0.22844806,2785.0,2784.5,0.0051161]
[1645899125211,1.36795944,2784.9,2784.6,0.13468682]
[1645899125412,1.29574684,2784.9,2784.6,0.13468682]
[1645899125610,1.29574684,2784.9,2784.6,0.8981491]
[1645899126418,1.29574684,2784.9,2784.7,1.1803111]
[1645899127514,0.22844806,2785.0,2784.7,1.1803111]
[1645899128357,0.90460454,2785.0,2784.7,1.1803111]
[1645899128559,0.90460454,2785.0,2784.6,1.7962991]
[1645899129259,0.22844806,2785.0,2784.6,1.7962991]
[1645899130059,0.22844806,2785.0,2784.6,2.0314295]
[1645899130259,0.90460454,2785.0,2784.6,2.0314295]
[1645899130460,0.90460454,2785.0,2784.5,0.00511614]
[1645899130660,0.67615648,2784.9,2784.5,0.00511614]
[1645899130862,0.90460454,2785.0,2784.5,0.00511614]
[1645899131460,0.90460454,2785.0,2784.4,1.20795484]
[1645899131732,0.67615648,2784.9,2784.5,0.0051161]
[1645899132116,0.67615648,2784.9,2784.5,1.21549727]
[1645899132521,0.67615648,2784.9,2784.5,1.21038117]
[1645899133022,0.67615648,2784.9,2784.5,1.21549722]
[1645899133419,0.90460454,2785.0,2784.5,1.21549722]
[1645899133817,0.90460454,2785.0,2784.5,1.21038117]
[1645899134017,0.90460454,2785.0,2784.5,1.21549727]
[1645899135018,0.90460454,2785.0,2784.5,1.21038117]
[1645899135219,0.90460454,2785.0,2784.5,1.21549727]
[1645899135757,0.67615648,2784.9,2784.5,1.21549727]
[1645899135956,0.90460454,2785.0,2784.5,1.21549727]
[1645899136157,0.90460454,2785.0,2784.5,1.21038117]
[1645899136456,0.90460454,2785.0,2784.5,1.21549722]
[1645899137062,0.67615648,2784.9,2784.5,1.21549722]
[1645899137461,0.67615648,2784.9,2784.5,1.21038117]
[1645899137661,0.67615648,2784.9,2784.5,1.21549722]
[1645899138662,0.67615648,2784.9,2784.5,1.21038117]
[1645899138861,0.67615648,2784.9,2784.5,1.21549722]
[1645899139618,0.67615648,2784.9,2784.4,1.7029036]
[1645899140214,0.67615648,2784.9,2784.4,1.20795484]
[1645899140615,0.22844806,2785.0,2784.4,1.20795484]
[1645899140616,0.67615648,2784.8,2784.4,1.20795484]
[1645899140813,0.67615648,2784.8,2784.4,1.2044]
[1645899141214,1.69896177,2784.8,2784.4,1.20713496]
[1645899141515,0.67615648,2784.7,2784.4,0.00273496]
[1645899141714,0.67615648,2784.6,2784.4,0.00273496]
[1645899142121,0.67615648,2784.6,2784.1,0.00355484]
[1645899142320,0.67615648,2784.6,2784.0,0.5258226]
[1645899142518,0.67615648,2784.5,2784.4,0.00511607]
[1645899142717,0.67615648,2784.6,2784.4,0.00511607]
[1645899142975,0.89369798,2784.8,2784.4,0.00511607]
[1645899142976,0.67615648,2784.5,2784.4,0.00511607]
[1645899143475,0.67615648,2784.5,2784.1,0.8983486]
[1645899143775,0.67615648,2784.5,2784.3,0.00511612]
[1645899144577,0.67615648,2784.5,2784.1,0.8983486]
[1645899144883,0.67615648,2784.5,2784.3,0.00511616]
[1645899145475,0.67615648,2784.5,2784.4,0.0758879]
[1645899146076,2.15046964,2784.6,2784.4,0.0758879]
[1645899146280,1.47431316,2784.5,2784.3,0.00511612]
[1645899146580,2.15113503,2784.4,2784.3,0.00511612]
[1645899146808,2.15113503,2784.4,2784.3,0.08100736]
[1645899147115,2.15113503,2784.4,2784.3,0.07589124]
[1645899147307,1.47431316,2784.4,2784.3,0.07589124]
[1645899148311,1.47431316,2784.4,2784.2,0.07589124]
[1645899148512,1.47431316,2784.3,2784.2,0.08100745]
[1645899149313,1.47431316,2784.3,2784.2,0.07589124]
[1645899158861,1.47431316,2784.3,2784.2,3.33513247]
[1645899159062,1.47431316,2784.3,2784.1,1.1983613]
[1645899159261,0.67682187,2784.9,2784.2,3.59278555]
[1645899159560,1.51756927,2784.8,2784.3,0.8981362]
[1645899159759,1.51756927,2784.8,2784.4,0.89815]
[1645899159958,1.51756927,2784.7,2784.4,0.89815]
[1645899160159,1.51756927,2784.6,2784.4,0.89815]
[1645899160358,1.51756927,2784.5,2784.4,0.89815]
[1645899160564,0.67682187,2785.0,2784.4,0.90326615]
[1645899160565,2.19950617,2785.0,2784.4,0.90326615]
[1645899160760,1.51756927,2784.5,2784.4,1.20326615]
[1645899161166,1.51756927,2784.9,2784.4,1.20326615]
[1645899161363,1.51756927,2784.8,2784.4,1.19815]
[1645899161564,1.51756927,2784.7,2784.4,1.19815]
[1645899161828,0.67682187,2785.0,2784.4,0.3]
[1645899161829,1.51756927,2784.6,2784.4,0.3]
[1645899162130,1.51756927,2784.5,2784.3,1.20325232]
[1645899162330,0.68193678,2785.0,2784.4,0.8982]
[1645899162627,1.51755221,2784.9,2784.4,0.8982]
[1645899162828,1.51755221,2784.8,2784.4,0.8982]
[1645899163030,1.51755221,2784.7,2784.4,0.8982]
[1645899163233,0.68193673,2785.0,2784.4,0.8982]
[1645899163234,1.51755221,2784.6,2784.4,0.8982]
[1645899163430,1.51755221,2784.5,2784.4,0.8982]
[1645899163829,1.51755221,2784.9,2784.3,1.1981362]
[1645899164029,1.51755221,2784.8,2784.3,1.20680793]
[1645899164230,1.51755221,2784.7,2784.3,1.20325232]
[1645899164431,0.67682187,2784.9,2784.3,1.20680793]
[1645899164432,1.51755221,2784.6,2784.3,1.20680793]
[1645899164628,1.51755221,2784.5,2784.3,1.20325232]
[1645899164829,1.51755221,2784.4,2784.3,1.20680793]
[1645899165027,2.19437408,2784.9,2784.3,0.3]
[1645899165231,1.51755221,2784.8,2784.3,0.30867177]
[1645899165457,1.51755221,2784.7,2784.4,0.89819]
[1645899165658,1.51755221,2784.6,2784.4,0.89819]
[1645899165863,1.51755221,2784.5,2784.4,0.89819]
[1645899166059,1.51755221,2784.9,2784.4,0.89819]
[1645899166259,1.51755221,2784.9,2784.5,0.8981981]
[1645899166458,1.51755221,2784.8,2784.5,0.8981981]
[1645899166661,1.51755221,2784.7,2784.5,0.8981981]
[1645899166864,1.51755221,2784.6,2784.4,0.47766984]
[1645899167065,1.51755221,2784.5,2784.4,0.47766984]
[1645899167264,2.19437408,2784.9,2784.4,0.47766984]
[1645899167465,2.19437408,2784.9,2784.5,0.8981945]
[1645899167664,2.10229798,2785.2,2784.5,0.8981945]
[1645899167665,1.51755221,2784.8,2784.5,0.8981945]
[1645899167865,1.51755221,2784.7,2784.5,0.8981945]
[1645899168165,1.51755221,2784.6,2784.5,0.8981945]
[1645899169507,1.51755221,2784.9,2784.5,0.8981945]
[1645899169708,1.51755221,2784.8,2784.5,0.8981945]
[1645899169905,1.51755221,2784.7,2784.5,0.8981945]
[1645899170106,1.51755221,2784.6,2784.5,0.8981945]
[1645899170509,0.00511512,2785.0,2784.5,0.8981945]
[1645899170510,1.51755221,2784.9,2784.5,0.8981945]
[1645899170711,1.51755221,2784.8,2784.5,0.8981945]
[1645899170916,1.51755221,2784.7,2784.5,0.8981945]
[1645899171114,0.67682187,2785.1,2784.6,1.13122303]
[1645899171314,0.67682187,2785.1,2784.5,0.8981945]
[1645899171315,0.00511508,2785.0,2784.5,0.8981945]
[1645899171514,1.51748904,2784.9,2784.5,0.8981945]
[1645899172414,1.51748904,2784.8,2784.5,0.8981945]
[1645899172614,1.51748904,2784.7,2784.5,0.8981945]
[1645899172815,1.51748904,2784.6,2784.5,0.8981945]
[1645899173053,1.51748904,2784.9,2784.5,0.8981945]
[1645899173254,1.51748904,2784.8,2784.5,1.1981945]
[1645899173459,1.51748904,2784.7,2784.5,1.1981945]
[1645899173657,1.51748904,2784.6,2784.5,1.1981945]
[1645899174055,1.51748904,2784.9,2784.5,1.1981945]
[1645899174254,1.51748904,2784.8,2784.5,1.1981945]
[1645899174454,0.00511512,2785.0,2784.6,0.89817]
[1645899174455,1.51748904,2784.9,2784.6,0.89817]
[1645899174655,1.51748904,2784.8,2784.6,0.89817]
[1645899175055,1.51748904,2784.7,2784.6,0.84770294]
[1645899175257,1.51748904,2784.9,2784.6,0.84770294]
[1645899175656,1.51748904,2784.9,2784.6,2.64390984]
[1645899176063,1.51748904,2784.8,2784.6,2.64390984]
[1645899176254,1.51748904,2784.7,2784.6,2.64390984]
[1645899176910,1.51748904,2784.9,2784.6,2.64390984]
[1645899177308,0.00511508,2785.0,2784.6,2.64390984]
[1645899177507,1.51748904,2784.9,2784.6,2.64390984]
[1645899178411,1.51748904,2784.8,2784.6,2.64390984]
[1645899178715,1.51748904,2784.7,2784.6,2.64390984]
[1645899179112,1.51748904,2784.9,2784.6,2.64390984]
[1645899179311,0.00511516,2785.0,2784.6,2.64390984]
[1645899179312,1.51748904,2784.8,2784.6,2.64390984]
[1645899179513,0.67682187,2785.2,2784.6,2.64390984]
[1645899179514,1.51748904,2784.7,2784.6,2.64390984]
[1645899179911,1.51748904,2784.9,2784.6,2.64390984]
[1645899180858,1.51748904,2784.8,2784.6,2.64390984]
[1645899181057,1.51748904,2784.7,2784.6,2.64390984]
[1645899181657,1.51748904,2784.9,2784.6,2.64390984]
[1645899182063,1.51748904,2784.8,2784.7,1.28484109]
[1645899182261,0.00511508,2785.0,2784.6,2.64390984]
[1645899182262,1.51748904,2784.9,2784.6,2.64390984]
[1645899183262,0.67682187,2785.2,2784.6,2.64390984]
[1645899183263,1.51748904,2784.8,2784.6,2.64390984]
[1645899183462,1.51748904,2784.7,2784.6,2.64390984]
[1645899183867,1.51748904,2784.9,2784.6,2.64390984]
[1645899184062,1.51748904,2784.8,2784.6,2.64390984]
[1645899184328,1.51748904,2784.7,2784.6,3.95147018]
[1645899184530,0.00511516,2785.0,2784.7,1.79606]
[1645899184731,1.51744145,2784.9,2784.7,1.79606]
[1645899185129,1.51744145,2784.9,2784.6,2.64390984]
[1645899185130,1.51744145,2784.9,2784.6,1.7962069]
[1645899185729,1.51744145,2784.8,2784.6,1.7962069]
[1645899185928,1.51744145,2784.7,2784.6,1.7962069]
[1645899186130,1.42048554,2784.9,2784.4,0.14871628]
[1645899186331,1.51744145,2784.8,2784.4,0.14871628]
[1645899186835,1.51744145,2784.8,2784.4,0.14871615]
[1645899187637,1.40083988,2784.4,2784.1,2.07244028]
[1645899187838,1.40083988,2784.4,2784.0,0.5258226]
[1645899187839,14.51744145,2784.3,2784.0,0.5258226]
[1645899188084,1.51744145,2784.2,2784.0,0.5258226]
[1645899188280,5.272,2784.1,2784.0,0.5258226]
[1645899188482,6.78944145,2784.1,2784.0,0.5258226]
[1645899188684,7.78944145,2784.1,2784.0,0.5258226]
[1645899189483,8.68313943,2784.1,2784.0,0.5258226]
[1645899189684,7.78944145,2784.1,2784.0,0.5258226]
[1645899191282,8.46381864,2784.1,2784.0,0.5258226]
[1645899191483,3.28944145,2784.1,2784.0,0.5258226]
[1645899191922,3.96381864,2784.1,2784.0,0.5258226]
[1645899192924,3.28944145,2784.1,2784.0,0.5258226]
[1645899193323,4.96381864,2784.1,2784.0,0.5258226]
[1645899193528,3.96381864,2784.1,2784.0,0.5258226]
[1645899193723,4.98065713,2784.1,2784.0,0.5258226]
[1645899193924,4.30627994,2784.1,2784.0,0.5258226]
[1645899197881,3.30627994,2784.1,2784.0,0.5258226]
[1645899198180,1.53427994,2784.1,2784.0,1.56328916]
[1645899198379,1.53427994,2784.1,2784.0,0.5258226]
[1645899203271,2.20865713,2784.1,2784.0,0.5258226]
[1645899203469,1.53427994,2784.1,2784.0,0.5258226]
[1645899207715,1.53427994,2784.1,2783.6,0.71204968]
[1645899207915,1.51744145,2784.0,2783.6,1.25647556]
[1645899208517,1.51744145,2784.0,2783.6,6.51164222]
[1645899208817,1.51744145,2784.0,2783.8,0.8984497]
[1645899209216,1.51744145,2784.0,2783.9,1.37229762]
[1645899210461,1.51744145,2784.0,2783.8,0.8984497]
[1645899211664,1.51744145,2784.0,2783.6,5.79959254]
[1645899212269,1.51744145,2784.0,2783.8,0.00510918]
[1645899213166,1.51744145,2784.0,2783.7,0.898491]
[1645899213366,1.51744145,2784.0,2783.8,0.00510918]
[1645899214219,0.01909606,2783.9,2783.7,0.898491]
[1645899214427,1.51744145,2783.8,2783.7,0.898491]
[1645899215215,1.51744145,2783.8,2783.6,5.79959254]
[1645899215813,1.51744145,2783.8,2783.6,5.80470187]
[1645899216614,1.51744145,2783.8,2783.6,5.79959254]
[1645899217020,1.51744145,2783.8,2783.6,5.80470192]
[1645899217819,1.51744145,2783.8,2783.6,5.79959254]
[1645899218069,1.51744145,2783.8,2783.6,5.80470192]
[1645899218665,0.01903025,2783.7,2783.6,5.80470192]
[1645899218865,1.5364717,2783.7,2783.6,5.80470192]
[1645899219070,1.5364717,2783.7,2783.6,5.79959254]
[1645899222316,1.53730348,2783.7,2783.6,5.79959254]
[1645899227669,1.53730348,2783.7,2783.6,4.18020698]
[1645899228068,1.53730348,2783.7,2783.6,0.54442588]
[1645899229446,2.21168067,2783.7,2783.6,0.54442588]
[1645899230449,1.53730348,2783.7,2783.6,0.54442588]
[1645899232652,0.69645689,2783.7,2783.6,0.54442588]
[1645899232851,2.21473012,2783.7,2783.6,0.54442588]
[1645899233066,0.69645689,2783.7,2783.6,0.54442588]
[1645899233273,2.21473012,2783.7,2783.6,0.54442588]
[1645899233473,1.53730348,2783.7,2783.6,0.54442588]
[1645899234273,2.4405347,2783.7,2783.6,0.54442588]
[1645899235077,1.53730348,2783.7,2783.6,0.54442588]
[1645899238625,2.4405347,2783.7,2783.6,0.54442588]
[1645899239427,1.53730348,2783.7,2783.6,0.54442588]
[1645899239723,2.4405347,2783.7,2783.6,0.54442588]
[1645899240572,1.53730348,2783.7,2783.6,0.54442588]
[1645899242476,2.21518899,2783.7,2783.6,0.54442588]
[1645899244314,0.92226147,2783.7,2783.6,0.54442588]
[1645899244514,1.53730348,2783.7,2783.6,0.54442588]
[1645899245917,2.21554884,2783.7,2783.6,0.54442588]
[1645899246217,1.53730348,2783.7,2783.6,0.54442588]
[1645899246622,0.90323122,2783.9,2783.6,1.20222588]
[1645899246623,0.67827116,2783.9,2783.6,1.20222588]
[1645899246828,0.67827116,2783.9,2783.7,0.516]
[1645899247022,0.67827116,2784.0,2783.7,0.516]
[1645899247219,0.67827116,2784.0,2783.8,1.8981996]
[1645899247419,2.19629989,2784.0,2783.9,0.516]
[1645899247619,0.67827116,2784.0,2783.9,0.516]
[1645899248068,0.67847133,2784.0,2783.9,0.516]
[1645899249277,0.90323122,2784.2,2783.9,0.816]
[1645899249474,0.90229077,2784.2,2783.9,0.816]
[1645899249678,0.67825422,2784.0,2783.9,0.816]
[1645899250073,2.19628295,2784.0,2783.9,0.816]
[1645899250277,0.67825422,2784.0,2783.9,0.816]
[1645899250683,0.67825422,2784.0,2783.9,0.516]
[1645899250876,2.19628295,2784.0,2783.9,0.516]
[1645899251077,0.67825422,2784.0,2783.9,0.516]
[1645899254534,1.51802873,2784.1,2783.9,0.516]
[1645899254732,2.19636438,2784.0,2783.9,2.31256]
[1645899255133,0.67833565,2784.0,2783.9,2.31256]
[1645899256177,0.678358,2784.0,2783.9,2.31256]
[1645899258381,0.678358,2784.1,2783.9,2.31256]
[1645899258977,2.19638673,2784.0,2783.9,2.31256]
[1645899259217,0.678358,2784.0,2783.9,2.31256]
[1645899259820,1.51802873,2784.0,2783.9,2.31256]
[1645899260021,0.678358,2784.1,2783.9,2.31256]
[1645899260225,0.678358,2784.1,2784.0,0.89824]
[1645899260424,0.678358,2784.1,2784.0,2.17283323]
[1645899260621,0.678358,2784.1,2784.0,2.68883323]
[1645899260824,1.51802873,2784.2,2784.0,2.68883323]
[1645899261122,1.51802873,2784.1,2784.0,3.88709323]
[1645899261323,0.90981396,2784.5,2784.1,2.6947508]